fUSD/lending_fUSD_20240125
["ID","MTS","AMOUNT","RATE_DAILY","PERIOD"]
[312747995,1706193039311,-500.0,0.00054794,120]
[312747997,1706193039320,-518.80664391,0.00054794,120]
[312747999,1706193039329,-500.0,0.00054794,120]
[312748001,1706193039338,-500.0,0.00054794,120]
[312748003,1706193039347,-516.36486449,0.00054794,120]
[312748005,1706193039355,-500.0,0.00054794,120]
[312748007,1706193039364,-504.4091115,0.00054794,120]
[312748009,1706193039374,-500.0,0.00054794,120]
[312748011,1706193039383,-500.0,0.00054794,120]
[312748013,1706193039392,-500.0,0.00054794,120]
[312748014,1706193039401,-511.83395678,0.00054794,120]
[312748017,1706193039410,-500.0,0.00054794,120]
[312748018,1706193039419,-514.86515706,0.00054794,120]
[312748020,1706193039428,-505.65102719,0.00054794,120]
[312748022,1706193039438,-505.61610404,0.00054794,120]
[312748024,1706193039448,-500.0,0.00054794,120]
[312748026,1706193039457,-500.0,0.00054794,120]
[312748028,1706193039466,-584.30335119,0.00054794,120]
[312748030,1706193039476,-510.65730298,0.00054794,120]
[312748032,1706193039485,-500.0,0.00054794,120]
[312748034,1706193039495,-500.0,0.00054794,120]
[312748036,1706193039504,-500.0,0.00054794,120]
[312748038,1706193039513,-500.0,0.00054794,120]
[312748040,1706193039523,-500.0,0.00054794,120]
[312748042,1706193039532,-500.0,0.00054794,120]
[312748044,1706193039541,-500.0,0.00054794,120]
[312748046,1706193039550,-506.75883016,0.00054794,120]
[312748048,1706193039559,-505.73891466,0.00054794,120]
[312748050,1706193039569,-509.85857867,0.00054794,120]
[312748052,1706193039578,-500.0,0.00054794,120]
[312748054,1706193039588,-309.91158177,0.00054794,120]
[312748056,1706193039597,-511.28043239,0.00054794,120]
[312748058,1706193039607,-500.0,0.00054794,120]
[312748060,1706193039616,-517.48674234,0.00054794,120]
[312748062,1706193039626,-509.32335791,0.00054794,120]
[312748064,1706193039635,-500.0,0.00054794,120]
[312748066,1706193039644,-500.0,0.00054794,120]
[312748068,1706193039653,-517.86456419,0.00054794,120]
[312748070,1706193039662,-172.27615748,0.00054794,120]
[312748072,1706193039671,-414.09396937,0.00054794,120]
[312748075,1706193039680,-504.57056721,0.00054794,120]
[312748078,1706193039689,-500.0,0.00054794,120]
[312748081,1706193039698,-500.0,0.00054794,120]
[312748084,1706193039707,-500.0,0.00054794,120]
[312748087,1706193039716,-500.0,0.00054794,120]
[312748089,1706193039725,-509.90656728,0.00054794,120]
[312748091,1706193039736,-500.0,0.00054794,120]
[312748093,1706193039745,-500.0,0.00054794,20]
[312748096,1706193039756,-159.5429922,0.00054794,120]
[312748099,1706193039765,-500.0,0.00054794,120]
[312748102,1706193039774,-507.44472486,0.00054794,120]
[312748105,1706193039785,-500.0,0.00054794,120]
[312748108,1706193039794,-500.0,0.00054794,120]
[312748111,1706193039804,-571.18,0.00054794,120]
[312748114,1706193039813,-2954.82,0.00054794,120]
[312748117,1706193039822,-500.0,0.00054794,120]
[312748119,1706193039832,-500.0,0.00054794,120]
[312748122,1706193039842,-500.0,0.00054794,120]
[312748125,1706193039851,-500.0,0.00054794,2]
[312748128,1706193039860,-500.0,0.00054794,2]
[312748131,1706193039869,-500.0,0.00054794,120]
[312748134,1706193039878,-500.0,0.00054794,120]
[312748137,1706193039888,-500.0,0.00054794,120]
[312748140,1706193039898,-500.0,0.00054794,120]
[312748143,1706193039907,-500.0,0.00054794,120]
[312748146,1706193039917,-500.0,0.00054794,120]
[312748149,1706193039926,-500.0,0.00054794,120]
[312748152,1706193039935,-500.0,0.00054794,120]
[312748154,1706193039944,-500.0,0.00054794,120]
[312748156,1706193039953,-500.0,0.00054794,120]
[312748158,1706193039963,-500.0,0.00054794,120]
[312748160,1706193039972,-500.0,0.00054794,120]
[312748162,1706193039981,-525.88578281,0.00054794,120]
[312748164,1706193039990,-599.44064556,0.00054794,120]
[312748166,1706193040000,-500.0,0.00054794,120]
[312748168,1706193040009,-500.0,0.00054794,120]
[312748170,1706193040019,-500.0,0.00054794,120]
[312748172,1706193040028,-500.0,0.00054794,2]
[312748173,1706193040038,-500.0,0.00054794,120]
[312748174,1706193040047,-500.0,0.00054794,120]
[312748175,1706193040056,-500.0,0.00054794,120]
[312748176,1706193040065,-500.0,0.00054794,120]
[312748177,1706193040074,-500.0,0.00054794,120]
[312748178,1706193040082,-500.0,0.00054794,120]
[312748179,1706193040092,-519.9901624,0.00054794,120]
[312748180,1706193040100,-500.0,0.00054794,120]
[312748182,1706193040109,-500.0,0.00054794,120]
[312748184,1706193040118,-500.0,0.00054794,120]
[312748186,1706193040127,-500.0,0.00054794,120]
[312748188,1706193040137,-500.0,0.00054794,120]
[312748190,1706193040147,-529.08452388,0.00054794,120]
[312748192,1706193040156,-500.0,0.00054794,120]
[312748194,1706193040164,-500.0,0.00054794,120]
[312748196,1706193040173,-500.0,0.00054794,120]
[312748198,1706193040182,-500.0,0.00054794,120]
[312748200,1706193040191,-500.0,0.00054794,120]
[312748202,1706193040200,-500.0,0.00054794,120]
[312748204,1706193040209,-500.0,0.00054794,120]
[312748206,1706193040218,-525.64001862,0.00054794,120]
[312748208,1706193040227,-548.95,0.00054794,120]
[312748209,1706193040236,-500.0,0.00054794,120]
[312748211,1706193040245,-500.0,0.00054794,120]
[312748213,1706193040254,-571.32998778,0.00054794,120]
[312748215,1706193040263,-500.0,0.00054794,120]
[312748217,1706193040272,-546.53253956,0.00054794,120]
[312748220,1706193040283,-500.0,0.00054794,120]
[312748222,1706193040292,-752.6,0.00054794,120]
[312748224,1706193040302,-500.0,0.00054794,120]
[312748227,1706193040311,-500.0,0.00054794,120]
[312748229,1706193040320,-443.51236479,0.00054794,120]
[312748231,1706193040329,-524.80859491,0.00054794,120]
[312748233,1706193040337,-500.0,0.00054794,120]
[312748235,1706193040346,-500.0,0.00054794,120]
[312748237,1706193040355,-503.10878321,0.00054794,120]
[312748240,1706193040364,-500.0,0.00054794,120]
[312748243,1706193040373,-500.0,0.00054794,120]
[312748245,1706193040382,-500.0,0.00054794,120]
[312748248,1706193040391,-503.44177017,0.00054794,120]
[312748250,1706193040401,-500.0,0.00054794,120]
[312748253,1706193040410,-500.0,0.00054794,120]
[312748256,1706193040419,-513.79130876,0.00054794,120]
[312748260,1706193040428,-500.0,0.00054794,120]
[312748263,1706193040437,-500.0,0.00054794,120]
[312748265,1706193040446,-500.0,0.00054794,120]
[312748266,1706193040455,-500.0,0.00054794,120]
[312748267,1706193040464,-500.0,0.00054794,120]
[312748268,1706193040473,-500.0,0.00054794,120]
[312748269,1706193040482,-546.84,0.00054794,2]
[312748270,1706193040491,-600.0,0.00054794,120]
[312748272,1706193040500,-512.00850713,0.00054794,120]
[312748273,1706193040509,-500.0,0.00054794,120]
[312748274,1706193040518,-500.0,0.00054794,120]
[312748275,1706193040527,-500.0,0.00054794,120]
[312748276,1706193040536,-500.0,0.00054794,120]
[312748277,1706193040546,-469.12560237,0.00054794,120]
[312748278,1706193040555,-500.0,0.00054794,120]
[312748279,1706193040564,-500.0,0.00054794,120]
[312748280,1706193040573,-500.0,0.00054794,120]
[312748281,1706193040582,-500.0,0.00054794,120]
[312748282,1706193040591,-509.57240296,0.00054794,120]
[312748283,1706193040601,-500.0,0.00054794,120]
[312748284,1706193040610,-500.0,0.00054794,120]
[312748285,1706193040619,-500.0,0.00054794,120]
[312748286,1706193040628,-864.26,0.00054794,120]
[312748287,1706193040638,-519.08517051,0.00054794,120]
[312748288,1706193040646,-500.0,0.00054794,120]
[312748289,1706193040656,-500.0,0.00054794,120]
[312748290,1706193040665,-244.46341248,0.00054794,120]
[312748291,1706193040674,-500.0,0.00054794,120]
[312748292,1706193040683,-766.48,0.00054794,120]
[312748293,1706193040692,-500.0,0.00054794,120]
[312748294,1706193040701,-500.0,0.00054794,120]
[312748295,1706193040710,-500.0,0.00054794,120]
[312748296,1706193040719,-500.0,0.00054794,120]
[312748297,1706193040730,-583.8684604,0.00054794,120]
[312748298,1706193040739,-633.73638991,0.00054794,120]
[312748299,1706193040748,-500.0,0.00054794,120]
[312748300,1706193040759,-513.35163744,0.00054794,120]
[312748301,1706193040768,-605.41203197,0.00054794,120]
[312748302,1706193040778,-506.96619544,0.00054794,14]
[312748303,1706193040789,-500.0,0.00054794,120]
[312748304,1706193040799,-511.1918422,0.00054794,120]
[312748305,1706193040808,-659.91,0.00054794,120]
[312748306,1706193040818,-623.52819233,0.00054794,120]
[312748307,1706193040827,-509.23180617,0.00054794,120]
[312748308,1706193040836,-507.02815442,0.00054794,120]
[312748309,1706193040845,-561.13351345,0.00054794,120]
[312748310,1706193040854,-500.0,0.00054794,120]
[312748311,1706193040863,-508.84701527,0.00054794,120]
[312748312,1706193040872,-500.0,0.00054794,120]
[312748313,1706193040881,-500.0,0.00054794,7]
[312748314,1706193040890,-500.0,0.00054794,120]
[312748315,1706193040899,-500.0,0.00054794,120]
[312748316,1706193040908,-500.0,0.00054794,120]
[312748317,1706193040918,-1269.17,0.00054794,2]
[312748318,1706193040927,-500.0,0.00054794,120]
[312748319,1706193040936,-284.19911707,0.00054794,120]
[312748320,1706193040945,-500.0,0.00054794,120]
[312748321,1706193040954,-500.0,0.00054794,120]
[312748322,1706193040963,-514.39432882,0.00054794,120]
[312748323,1706193040972,-500.0,0.00054794,120]
[312748324,1706193040981,-500.0,0.00054794,120]
[312748325,1706193040991,-869.4,0.00054794,120]
[312748326,1706193041000,-500.0,0.00054794,120]
[312748327,1706193041009,-500.0,0.00054794,120]
[312748328,1706193041018,-500.0,0.00054794,120]
[312748329,1706193041027,-500.0,0.00054794,120]
[312748330,1706193041038,-511.52169513,0.00054794,120]
[312748331,1706193041048,-500.27862676,0.00054794,120]
[312748332,1706193041058,-500.0,0.00054794,120]
[312748333,1706193041067,-500.0,0.00054794,120]
[312748334,1706193041076,-500.0,0.00054794,120]
[312748335,1706193041085,-500.0,0.00054794,120]
[312748336,1706193041094,-507.76506624,0.00054794,120]
[312748337,1706193041103,-507.23763953,0.00054794,120]
[312748338,1706193041113,-500.0,0.00054794,120]
[312748339,1706193041122,-504.36199508,0.00054794,120]
[312748340,1706193041131,-512.88099105,0.00054794,120]
[312748341,1706193041140,-500.0,0.00054794,120]
[312748342,1706193041149,-500.0,0.00054794,120]
[312748343,1706193041158,-518.84229183,0.00054794,120]
[312748344,1706193041167,-500.0,0.00054794,120]
[312748345,1706193041176,-515.15074963,0.00054794,120]
[312748346,1706193041186,-500.0,0.00054794,120]
[312748347,1706193041195,-500.0,0.00054794,120]
[312748348,1706193041204,-500.0,0.00054794,120]
[312748349,1706193041213,-500.0,0.00054794,120]
[312748350,1706193041222,-500.0,0.00054794,120]
[312748351,1706193041231,-511.96173725,0.00054794,120]
[312748352,1706193041240,-500.0,0.00054794,120]
[312748353,1706193041249,-509.12325652,0.00054794,120]
[312748354,1706193041258,-500.0,0.00054794,120]
[312748355,1706193041268,-504.99724126,0.00054794,120]
[312748356,1706193041277,-510.83338709,0.00054794,120]
[312748357,1706193041288,-500.0,0.00054794,120]
[312748358,1706193041297,-508.1243974,0.00054794,120]
[312748359,1706193041306,-514.97795765,0.00054794,120]
[312748360,1706193041316,-500.0,0.00054794,120]
[312748361,1706193041325,-507.90642967,0.00054794,120]
[312748362,1706193041334,-505.51864086,0.00054794,120]
[312748364,1706193041343,-505.9553704,0.00054794,120]
[312748366,1706193041352,-234.14787927,0.00054794,120]
[312748368,1706193041362,-560.4852972,0.00054794,120]
[312748369,1706193041371,-505.45798867,0.00054794,120]
[312748370,1706193041380,-513.77871502,0.00054794,120]
[312748371,1706193041389,-500.0,0.00054794,120]
[312748372,1706193041398,-317.61600499,0.00054794,120]
[312748373,1706193041407,-508.09951124,0.00054794,120]
[312748374,1706193041416,-500.0,0.00054794,120]
[312748375,1706193041427,-505.74943036,0.00054794,120]
[312748376,1706193041436,-500.0,0.00054794,120]
[312748377,1706193041445,-507.04369857,0.00054794,120]
[312748378,1706193041455,-500.0,0.00054794,120]
[312748379,1706193041465,-349.31536533,0.00054794,120]
[312748380,1706193041475,-500.0,0.00054794,120]
[312748381,1706193041485,-514.2264411,0.00054794,120]
[312748382,1706193041496,-500.0,0.00054794,120]
[312748383,1706193041506,-605.60765953,0.00054794,120]
[312748384,1706193041515,-500.0,0.00054794,120]
[312748385,1706193041526,-500.0,0.00054794,120]
[312748386,1706193041536,-500.0,0.00054794,120]
[312748387,1706193041547,-500.0,0.00054794,120]
[312748388,1706193041557,-500.0,0.00054794,120]
[312748389,1706193041567,-506.24596605,0.00054794,120]
[312748390,1706193041576,-513.73735594,0.00054794,120]
[312748391,1706193041586,-505.56219645,0.00054794,120]
[312748392,1706193041596,-507.96609233,0.00054794,120]
[312748393,1706193041607,-500.0,0.00054794,120]
[312748395,1706193041617,-500.0,0.00054794,120]
[312748397,1706193041627,-516.87417075,0.00054794,120]
[312748399,1706193041639,-500.0,0.00054794,120]
[312748401,1706193041650,-1021.93698148,0.00054794,120]
[312748404,1706193041660,-504.66352179,0.00054794,120]
[312748406,1706193041670,-500.0,0.00054794,120]
[312748408,1706193041679,-507.76313276,0.00054794,120]
[312748410,1706193041688,-504.47900277,0.00054794,120]
[312748411,1706193041700,-501.97848887,0.00054794,120]
[312748413,1706193041709,-500.0,0.00054794,120]
[312748416,1706193041718,-509.16676307,0.00054794,120]
[312748423,1706193041866,-535.07925803,0.00054794,120]
[312748426,1706193041898,-512.45821689,0.00054794,120]
[312748428,1706193041908,-511.40237522,0.00054794,120]
[312748430,1706193041918,-500.0,0.00054794,120]
[312748432,1706193041928,-507.96086162,0.00054794,120]
[312748434,1706193041937,-500.0,0.00054794,120]
[312748436,1706193041946,-500.0,0.00054794,120]
[312748438,1706193041955,-500.0,0.00054794,120]
[312748440,1706193041965,-500.0,0.00054794,120]
[312748442,1706193041976,-500.0,0.00054794,120]
[312748444,1706193041986,-500.0,0.00054794,120]
[312748446,1706193041996,-500.0,0.00054794,120]
[312748448,1706193042006,-499.94082865,0.00054794,120]
[312748450,1706193042015,-150.0,0.00054794,120]
[312748452,1706193042025,-500.0,0.00054794,120]
[312748454,1706193042038,-504.84640786,0.00054794,120]
[312748455,1706193042051,-500.0,0.00054794,120]
[312748457,1706193042061,-500.0,0.00054794,120]
[312748459,1706193042071,-500.0,0.00054794,120]
[312748462,1706193042082,-500.0,0.00054794,120]
[312748463,1706193042108,-514.38768167,0.00054794,120]
[312748465,1706193042137,-515.63379505,0.00054794,120]
[312748467,1706193042147,-500.0,0.00054794,120]
[312748470,1706193042157,-509.86153149,0.00054794,120]
[312748472,1706193042167,-500.0,0.00054794,120]
[312748474,1706193042177,-514.69614664,0.00054794,120]
[312748475,1706193042187,-500.0,0.00054794,120]
[312748478,1706193042197,-500.0,0.00054794,120]
[312748479,1706193042207,-514.58400753,0.00054794,120]
[312748481,1706193042216,-500.0,0.00054794,120]
[312748483,1706193042226,-500.0,0.00054794,120]
[312748485,1706193042235,-500.0,0.00054794,120]
[312748487,1706193042245,-335.67259629,0.00054794,120]
[312748489,1706193042254,-520.27,0.00054794,120]
[312748491,1706193042264,-518.97381377,0.00054794,120]
[312748493,1706193042274,-515.13019556,0.00054794,120]
[312748495,1706193042283,-500.0,0.00054794,120]
[312748497,1706193042295,-507.22142654,0.00054794,120]
[312748499,1706193042305,-263.29690019,0.00054794,120]
[312748501,1706193042315,-509.8050699,0.00054794,120]
[312748502,1706193042324,-500.0,0.00054794,120]
[312748503,1706193042334,-500.0,0.00054794,120]
[312748504,1706193042343,-506.01030303,0.00054794,120]
[312748505,1706193042352,-516.54635348,0.00054794,120]
[312748506,1706193042361,-610.85177889,0.00054794,120]
[312748507,1706193042372,-500.0,0.00054794,120]
[312748508,1706193042382,-249.76759004,0.00054794,120]
[312748509,1706193042392,-505.62082449,0.00054794,120]
[312748510,1706193042403,-500.0,0.00054794,120]
[312748511,1706193042413,-510.53174557,0.00054794,120]
[312748512,1706193042424,-511.96149107,0.00054794,120]
[312748513,1706193042434,-500.0,0.00054794,120]
[312748514,1706193042445,-500.0,0.00054794,120]
[312748515,1706193042454,-500.0,0.00054794,120]
[312748516,1706193042464,-500.0,0.00054794,120]
[312748517,1706193042474,-515.20137238,0.00054794,120]
[312748518,1706193042485,-500.0,0.00054794,120]
[312748519,1706193042495,-500.0,0.00054794,120]
[312748520,1706193042506,-500.0,0.00054794,120]
[312748521,1706193042516,-510.66738811,0.00054794,120]
[312748522,1706193042526,-500.0,0.00054794,120]
[312748523,1706193042535,-500.0,0.00054794,120]
[312748524,1706193042546,-500.0,0.00054794,120]
[312748525,1706193042555,-500.0,0.00054794,120]
[312748526,1706193042564,-500.0,0.00054794,120]
[312748527,1706193042573,-176.63548022,0.00054794,120]
[312748528,1706193042582,-504.62547446,0.00054794,120]
[312748529,1706193042592,-511.46695781,0.00054794,120]
[312748530,1706193042601,-500.0,0.00054794,120]
[312748531,1706193042611,-500.0,0.00054794,120]
[312748532,1706193042621,-250.0,0.00054794,120]
[312748533,1706193042630,-500.0,0.00054794,120]
[312748534,1706193042639,-500.0,0.00054794,120]
[312748535,1706193042648,-500.0,0.00054794,120]
[312748536,1706193042658,-500.0,0.00054794,120]
[312748537,1706193042668,-500.0,0.00054794,120]
[312748538,1706193042677,-500.0,0.00054794,120]
[312748539,1706193042686,-500.0,0.00054794,120]
[312748540,1706193042695,-500.0,0.00054794,120]
[312748541,1706193042705,-500.0,0.00054794,120]
[312748542,1706193042714,-500.0,0.00054794,120]
[312748543,1706193042724,-500.0,0.00054794,120]
[312748544,1706193042737,-500.0,0.00054794,120]
[312748545,1706193042746,-500.0,0.00054794,120]
[312748547,1706193042755,-500.0,0.00054794,120]
[312748549,1706193042764,-500.0,0.00054794,120]
[312748551,1706193042774,-472.43431349,0.00054794,120]
[312748552,1706193042785,-500.0,0.00054794,120]
[312748553,1706193042795,-500.0,0.00054794,120]
[312748555,1706193042804,-500.0,0.00054794,120]
[312748556,1706193042813,-453.26771274,0.00054794,120]
[312748557,1706193042823,-504.35725155,0.00054794,120]
[312748558,1706193042833,-500.0,0.00054794,120]
[312748559,1706193042842,-524.36605223,0.00054794,30]
[312748560,1706193042851,-500.0,0.00054794,120]
[312748561,1706193042861,-500.0,0.00054794,2]
[312748562,1706193042870,-500.0,0.00054794,120]
[312748563,1706193042880,-500.0,0.00054794,120]
[312748565,1706193042889,-500.0,0.00054794,120]
[312748567,1706193042898,-500.0,0.00054794,120]
[312748569,1706193042907,-500.0,0.00054794,120]
[312748571,1706193042916,-511.24771854,0.00054794,120]
[312748573,1706193042925,-500.0,0.00054794,120]
[312748574,1706193042934,-500.0,0.00054794,120]
[312748575,1706193042943,-508.07921271,0.00054794,120]
[312748576,1706193042952,-500.0,0.00054794,120]
[312748577,1706193042961,-505.87441884,0.00054794,120]
[312748578,1706193042971,-505.32638858,0.00054794,120]
[312748579,1706193042980,-503.66075715,0.00054794,120]
[312748580,1706193042990,-500.0,0.00054794,120]
[312748581,1706193042999,-509.41819956,0.00054794,120]
[312748582,1706193043009,-507.51512079,0.00054794,120]
[312748583,1706193043019,-500.0,0.00054794,120]
[312748584,1706193043027,-500.0,0.00054794,120]
[312748585,1706193043037,-500.0,0.00054794,120]
[312748586,1706193043046,-378.29124846,0.00054794,120]
[312748587,1706193043055,-500.0,0.00054794,120]
[312748588,1706193043065,-505.28377147,0.00054794,120]
[312748589,1706193043074,-500.0,0.00054794,120]
[312748590,1706193043084,-500.0,0.00054794,120]
[312748591,1706193043093,-500.0,0.00054794,120]
[312748592,1706193043102,-500.0,0.00054794,120]
[312748593,1706193043111,-505.11931575,0.00054794,120]
[312748594,1706193043120,-500.0,0.00054794,120]
[312748595,1706193043130,-500.0,0.00054794,120]
[312748596,1706193043139,-500.0,0.00054794,10]
[312748597,1706193043148,-500.0,0.00054794,30]
[312748598,1706193043157,-500.0,0.00054794,120]
[312748599,1706193043166,-500.0,0.00054794,120]
[312748600,1706193043175,-500.0,0.00054794,120]
[312748601,1706193043185,-479.33058491,0.00054794,120]
[312748602,1706193043194,-500.0,0.00054794,120]
[312748603,1706193043203,-500.0,0.00054794,120]
[312748604,1706193043212,-505.70538683,0.00054794,120]
[312748605,1706193043222,-500.0,0.00054794,120]
[312748606,1706193043231,-500.0,0.00054794,120]
[312748607,1706193043240,-500.0,0.00054794,120]
[312748608,1706193043250,-272.52843357,0.00054794,120]
[312748609,1706193043259,-500.0,0.00054794,120]
[312748610,1706193043268,-506.58226727,0.00054794,120]
[312748611,1706193043278,-500.0,0.00054794,120]
[312748612,1706193043288,-500.0,0.00054794,120]
[312748614,1706193043297,-500.0,0.00054794,120]
[312748616,1706193043306,-500.0,0.00054794,120]
[312748618,1706193043316,-504.16053617,0.00054794,120]
[312748620,1706193043325,-500.0,0.00054794,120]
[312748622,1706193043334,-500.0,0.00054794,120]
[312748624,1706193043343,-500.0,0.00054794,120]
[312748626,1706193043352,-500.0,0.00054794,120]
[312748628,1706193043361,-515.48601298,0.00054794,120]
[312748630,1706193043370,-500.0,0.00054794,120]
[312748632,1706193043379,-500.0,0.00054794,120]
[312748634,1706193043389,-500.0,0.00054794,120]
[312748637,1706193043400,-500.0,0.00054794,120]
[312748639,1706193043411,-515.63252858,0.00054794,120]
[312748641,1706193043420,-507.6349475,0.00054794,120]
[312748643,1706193043431,-523.16,0.00054794,120]
[312748645,1706193043441,-500.0,0.00054794,120]
[312748646,1706193043451,-500.0,0.00054794,120]
[312748648,1706193043462,-506.32374571,0.00054794,120]
[312748651,1706193043471,-500.0,0.00054794,120]
[312748652,1706193043481,-497.07973777,0.00054794,120]
[312748653,1706193043490,-500.0,0.00054794,120]
[312748654,1706193043500,-500.0,0.00054794,120]
[312748655,1706193043510,-500.0,0.00054794,120]
[312748656,1706193043519,-500.0,0.00054794,120]
[312748657,1706193043529,-500.0,0.00054794,120]
[312748658,1706193043539,-500.0,0.00054794,120]
[312748659,1706193043548,-500.0,0.00054794,120]
[312748660,1706193043558,-500.0,0.00054794,120]
[312748661,1706193043566,-503.87041367,0.00054794,120]
[312748662,1706193043576,-500.0,0.00054794,120]
[312748663,1706193043585,-500.0,0.00054794,120]
[312748664,1706193043594,-516.07427586,0.00054794,120]
[312748665,1706193043603,-512.62778796,0.00054794,120]
[312748666,1706193043612,-500.0,0.00054794,120]
[312748667,1706193043621,-516.21,0.00054794,120]
[312748668,1706193043631,-512.78611375,0.00054794,120]
[312748669,1706193043640,-509.68412949,0.00054794,120]
[312748670,1706193043649,-500.0,0.00054794,120]
[312748672,1706193043658,-511.49428272,0.00054794,120]
[312748674,1706193043667,-500.0,0.00054794,120]
[312748676,1706193043676,-506.0115247,0.00054794,120]
[312748678,1706193043685,-506.75775727,0.00054794,120]
[312748680,1706193043694,-500.0,0.00054794,120]
[312748682,1706193043703,-500.0,0.00054794,120]
[312748683,1706193043712,-595.56,0.00054794,120]
[312748684,1706193043721,-500.0,0.00054794,120]
[312748685,1706193043731,-500.0,0.00054794,120]
[312748686,1706193043740,-504.08536919,0.00054794,120]
[312748687,1706193043749,-500.0,0.00054794,120]
[312748688,1706193043761,-500.0,0.00054794,120]
[312748689,1706193043770,-500.0,0.00054794,120]
[312748690,1706193043779,-500.0,0.00054794,120]
[312748691,1706193043789,-500.0,0.00054794,120]
[312748692,1706193043800,-500.0,0.00054794,120]
[312748693,1706193043809,-500.0,0.00054794,120]
[312748694,1706193043820,-500.0,0.00054794,120]
[312748695,1706193043829,-500.0,0.00054794,120]
[312748696,1706193043841,-500.0,0.00054794,120]
[312748697,1706193043850,-500.0,0.00054794,120]
[312748698,1706193043859,-1000.0,0.00054794,120]
[312748699,1706193043869,-500.0,0.00054794,120]
[312748700,1706193043879,-500.0,0.00054794,120]
[312748701,1706193043890,-500.0,0.00054794,120]
[312748702,1706193043900,-500.0,0.00054794,120]
[312748703,1706193043909,-500.0,0.00054794,120]
[312748704,1706193043920,-500.0,0.00054794,120]
[312748705,1706193043929,-511.35633208,0.00054794,120]
[312748706,1706193043938,-428.42408604,0.00054794,120]
[312748707,1706193043948,-500.0,0.00054794,120]
[312748708,1706193043956,-500.0,0.00054794,120]
[312748709,1706193043966,-500.0,0.00054794,120]
[312748710,1706193043975,-500.0,0.00054794,120]
[312748711,1706193043984,-508.48414561,0.00054794,120]
[312748712,1706193043994,-500.0,0.00054794,120]
[312748713,1706193044003,-500.0,0.00054794,120]
[312748714,1706193044013,-519.27577222,0.00054794,120]
[312748715,1706193044023,-539.57177558,0.00054794,120]
[312748716,1706193044032,-500.0,0.00054794,120]
[312748717,1706193044043,-500.0,0.00054794,120]
[312748718,1706193044053,-500.0,0.00054794,120]
[312748719,1706193044062,-500.0,0.00054794,120]
[312748720,1706193044071,-500.0,0.00054794,120]
[312748721,1706193044080,-500.0,0.00054794,120]
[312748722,1706193044089,-500.0,0.00054794,120]
[312748723,1706193044098,-505.9666974,0.00054794,120]
[312748724,1706193044107,-500.0,0.00054794,120]
[312748725,1706193044117,-566.9,0.00054794,120]
[312748726,1706193044126,-608.46108668,0.00054794,120]
[312748727,1706193044136,-500.0,0.00054794,120]
[312748728,1706193044145,-500.0,0.00054794,120]
[312748729,1706193044155,-1000.0,0.00054794,7]
[312748730,1706193044164,-500.0,0.00054794,120]
[312748731,1706193044175,-500.0,0.00054794,120]
[312748732,1706193044184,-514.41988453,0.00054794,120]
[312748733,1706193044193,-500.0,0.00054794,120]
[312748734,1706193044202,-500.0,0.00054794,120]
[312748735,1706193044212,-500.0,0.00054794,120]
[312748736,1706193044222,-500.0,0.00054794,120]
[312748737,1706193044231,-500.0,0.00054794,120]